bitfinex/quotes_BTCUSD_20241117
["timestamp","ask_amount","ask_price","bid_price","bid_amount"]
[1731849740764,0.138303,90659.0,90642.0,0.000857]
[1731849741228,0.138303,90659.0,90636.0,0.00011013]
[1731849741229,0.023,90658.0,90636.0,0.00011013]
[1731849741447,0.29483877,90647.0,90636.0,0.00011013]
[1731849741659,0.29483877,90645.0,90642.0,0.66129912]
[1731849741865,0.04954097,90644.0,90637.0,0.11278557]
[1731849742093,0.25072775,90651.0,90637.0,0.11278557]
[1731849742094,0.09829153,90640.0,90637.0,0.22311457]
[1731849742326,0.09829153,90643.0,90637.0,0.10906255]
[1731849742559,0.09829153,90644.0,90637.0,0.10906255]
[1731849742783,0.2015822,90651.0,90637.0,0.10906255]
[1731849742784,0.09829153,90645.0,90637.0,0.10906255]
[1731849743465,0.09829153,90648.0,90637.0,0.21939255]
[1731849743672,0.02229153,90649.0,90637.0,0.10906255]
[1731849743888,0.005,90650.0,90637.0,0.10906255]
[1731849744528,0.005,90650.0,90638.0,0.00371172]
[1731849744760,0.005,90650.0,90639.0,0.10906255]
[1731849745209,0.005,90650.0,90640.0,0.00370874]
[1731849746971,0.005,90650.0,90641.0,0.27454601]
[1731849747180,0.005,90652.0,90643.0,0.220645]
[1731849747450,0.005,90652.0,90644.0,0.11126863]
[1731849747646,0.005,90652.0,90644.0,0.22158963]
[1731849747865,0.005,90652.0,90644.0,0.11497525]
[1731849748072,0.005,90661.0,90646.0,0.005]
[1731849748290,0.16548346,90659.0,90648.0,0.110315]
[1731849748504,0.16548346,90659.0,90649.0,0.10906255]
[1731849748735,0.17048346,90669.0,90653.0,0.11031]
[1731849748939,0.005,90668.0,90655.0,0.110307]
[1731849749151,0.005,90664.0,90656.0,0.22157438]
[1731849749362,0.16548346,90669.0,90656.0,0.11496914]
[1731849749577,0.24397626,90682.0,90656.0,0.11496914]
[1731849749578,0.16548346,90676.0,90663.0,0.330895]
[1731849749779,0.16548346,90676.0,90664.0,0.21935855]
[1731849749989,0.16548346,90676.0,90665.0,0.110295]
[1731849750195,0.16548346,90676.0,90666.0,0.10906255]
[1731849750437,0.110274,90683.0,90667.0,0.110292]
[1731849750650,0.005,90684.0,90658.0,0.367109]
[1731849750651,0.005,90684.0,90671.0,0.110288]
[1731849750874,0.005,90684.0,90668.0,0.220583]
[1731849751096,0.005,90684.0,90671.0,0.110288]
[1731849751358,0.005,90684.0,90664.0,0.220593]
[1731849751359,0.17048346,90687.0,90675.0,0.110283]
[1731849751554,0.17048346,90687.0,90674.0,0.110285]
[1731849751764,0.17048346,90687.0,90676.0,0.00390775]
[1731849751973,0.01,90690.0,90675.0,0.00366519]
[1731849752192,0.01,90691.0,90676.0,0.220565]
[1731849752418,0.005,90691.0,90678.0,0.110279]
[1731849752631,0.005,90687.0,90678.0,0.110279]
[1731849752836,0.005,90690.0,90679.0,0.0036294]
[1731849753054,0.005,90690.0,90679.0,0.1139074]
[1731849753265,0.27574646,90692.0,90679.0,0.110278]
[1731849753489,0.120265,90691.0,90680.0,0.00362604]
[1731849753722,0.115265,90691.0,90680.0,0.00220536]
[1731849753946,0.115265,90691.0,90681.0,0.00362604]
[1731849754162,0.005,90691.0,90681.0,0.00362604]
[1731849754368,0.005,90691.0,90679.0,0.110278]
[1731849754579,0.005,90691.0,90682.0,0.0037275]
[1731849754787,0.005,90691.0,90680.0,0.00373086]
[1731849755001,0.005,90691.0,90683.0,0.00372582]
[1731849755253,0.005,90691.0,90681.0,0.00381946]
[1731849755468,0.005,90691.0,90676.0,0.220565]
[1731849755469,0.110266,90690.0,90684.0,0.00381442]
[1731849755674,0.110267,90689.0,90684.0,0.00381442]
[1731849755881,0.115265,90691.0,90676.0,0.220565]
[1731849756099,0.110282,90676.0,90675.0,0.0017116]
[1731849756370,0.00720564,90682.0,90662.0,0.1]
[1731849756591,0.00720564,90682.0,90662.0,0.20906255]
[1731849756592,0.110287,90673.0,90662.0,0.20906255]
[1731849756801,0.110281,90677.0,90664.0,0.110297]
[1731849757008,0.110281,90677.0,90665.0,0.1]
[1731849757230,0.220555,90680.0,90665.0,0.1]
[1731849757231,0.110279,90679.0,90665.0,0.210295]
[1731849757448,0.11028,90678.0,90665.0,0.210295]
[1731849757658,0.110282,90677.0,90665.0,0.210295]
[1731849758069,0.110281,90677.0,90665.0,0.210295]
[1731849758300,0.220558,90679.0,90666.0,0.00382773]
[1731849758301,0.110283,90676.0,90666.0,0.00382773]
[1731849758714,0.110282,90677.0,90666.0,0.10382773]
[1731849760112,0.110282,90677.0,90662.0,0.10067334]
[1731849760316,0.110283,90676.0,90667.0,0.0035873]
[1731849760532,0.110283,90676.0,90664.0,0.110297]
[1731849760748,0.110283,90676.0,90668.0,0.00358394]
[1731849760959,0.220558,90679.0,90662.0,0.10067334]
[1731849761173,0.17048346,90682.0,90669.0,0.00358198]
[1731849761404,0.110283,90676.0,90665.0,0.110296]
[1731849761615,0.220555,90680.0,90666.0,0.110294]
[1731849761814,0.110276,90681.0,90667.0,0.110293]
[1731849762019,0.1726891,90682.0,90666.0,0.00358723]
[1731849762221,0.11248164,90682.0,90668.0,0.22417627]
[1731849762423,0.005,90683.0,90668.0,0.22417627]
[1731849762424,0.005,90683.0,90675.0,0.110283]
[1731849762849,0.005,90683.0,90676.0,0.00358218]
[1731849763247,0.005,90683.0,90674.0,0.110284]
[1731849763662,0.005,90683.0,90668.0,0.32964655]
[1731849763927,0.005,90683.0,90675.0,0.00358386]
[1731849764126,0.005,90683.0,90673.0,0.110285]
[1731849764340,0.005,90683.0,90676.0,0.00358218]
[1731849764548,0.115274,90683.0,90675.0,0.0017132]
[1731849764767,0.005,90683.0,90677.0,0.0035805]
[1731849764961,0.115274,90683.0,90676.0,0.00358218]
[1731849765167,0.005,90683.0,90675.0,0.0017132]
[1731849765366,0.110273,90684.0,90675.0,0.0017132]
[1731849765581,0.110273,90684.0,90676.0,0.00358218]
[1731849766215,0.110274,90683.0,90676.0,0.00358218]
[1731849766484,0.110276,90682.0,90676.0,0.00358218]
[1731849766688,0.110276,90682.0,90675.0,0.0017132]
[1731849766892,0.110274,90683.0,90675.0,0.0017132]
[1731849767294,0.14125945,90686.0,90675.0,0.0017132]
[1731849767295,0.110278,90680.0,90675.0,0.0017132]
[1731849767487,0.14125945,90686.0,90675.0,0.0017132]
[1731849767488,0.110276,90682.0,90675.0,0.0017132]
[1731849767770,0.220547,90684.0,90675.0,0.0017132]
[1731849767771,0.110274,90683.0,90676.0,0.00357457]
[1731849769039,0.220543,90685.0,90676.0,0.00357457]
[1731849769475,0.110276,90682.0,90676.0,0.00357457]
[1731849769843,0.220543,90685.0,90676.0,0.00357457]
[1731849769844,0.110275,90683.0,90676.0,0.00357457]
[1731849771648,0.220543,90685.0,90676.0,0.00357457]
[1731849771982,0.220546,90684.0,90676.0,0.00357457]
[1731849772178,0.220546,90684.0,90675.0,0.0017132]
[1731849772386,0.220546,90684.0,90677.0,0.00357961]
[1731849772591,0.220546,90684.0,90675.0,0.0017132]
[1731849772592,0.110276,90682.0,90676.0,0.00358129]
[1731849772797,0.14125945,90686.0,90678.0,0.00357793]
[1731849773023,0.14125945,90686.0,90675.0,0.0017132]
[1731849773024,0.110277,90681.0,90675.0,0.0017132]
[1731849773256,0.0008566,90687.0,90675.0,0.0017132]
[1731849773257,0.16548346,90683.0,90675.0,0.0017132]
[1731849773469,0.034282,90676.0,90675.0,0.0017132]
[1731849773667,0.110282,90676.0,90675.0,0.0017132]
[1731849775336,0.2213956,90687.0,90675.0,0.0017132]
[1731849775337,0.110278,90680.0,90675.0,0.0017132]
[1731849775554,0.005,90677.0,90675.0,0.0017132]
[1731849775983,0.005,90688.0,90676.0,0.16548346]
[1731849776201,0.005,90688.0,90675.0,0.1119962]
[1731849776202,0.110272,90685.0,90675.0,0.1119962]
[1731849776441,0.110265,90691.0,90680.0,0.110276]
[1731849776678,0.005,90693.0,90679.0,0.220558]
[1731849776878,0.0008565,90686.0,90680.0,0.220555]
[1731849777100,0.0008565,90686.0,90679.0,0.0767]
[1731849777101,0.0008565,90686.0,90683.0,0.110273]
[1731849777302,0.0008565,90686.0,90685.0,0.110271]
[1731849777737,0.0008565,90686.0,90685.0,0.11384088]
[1731849777955,0.0008565,90686.0,90685.0,0.00356988]
[1731849778382,0.0008565,90686.0,90685.0,0.11384088]
[1731849778814,0.0008565,90686.0,90685.0,0.22490343]
[1731849779314,0.28072946,90706.0,90686.0,0.220541]
[1731849779526,0.28072946,90706.0,90687.0,0.10906255]
[1731849779527,0.16548346,90695.0,90687.0,0.10906255]
[1731849779739,0.110252,90701.0,90692.0,0.110262]
[1731849780190,0.220496,90705.0,90687.0,0.10906255]
[1731849780191,0.11025,90703.0,90693.0,0.11381813]
[1731849780418,0.110247,90705.0,90696.0,0.110257]
[1731849780618,0.110247,90705.0,90694.0,0.220521]
[1731849780619,0.110249,90704.0,90694.0,0.110259]
[1731849780827,0.17048346,90706.0,90692.0,0.110262]
[1731849780828,0.110253,90701.0,90692.0,0.110262]
[1731849781029,0.17048346,90706.0,90695.0,0.00355781]
[1731849781030,0.1726891,90706.0,90695.0,0.00355781]
[1731849781262,0.1726891,90706.0,90692.0,0.110262]
[1731849781263,0.110252,90701.0,90692.0,0.110262]
[1731849781472,0.110252,90701.0,90696.0,0.00355949]
[1731849781687,0.110251,90702.0,90696.0,0.00355949]
[1731849781904,0.110251,90702.0,90689.0,0.16548346]
[1731849781905,0.1726891,90706.0,90689.0,0.16548346]
[1731849782133,0.11025,90703.0,90697.0,0.00354941]
[1731849782332,0.11025,90703.0,90689.0,0.16548346]
[1731849782333,0.1726891,90706.0,90689.0,0.16548346]
[1731849782558,0.110254,90700.0,90698.0,0.00355109]
[1731849782763,0.220495,90705.0,90689.0,0.16548346]
[1731849782968,0.220495,90705.0,90690.0,0.220531]
[1731849783192,0.11025,90703.0,90690.0,0.00356789]
[1731849783396,0.110248,90704.0,90694.0,0.110259]
[1731849783620,0.110248,90704.0,90694.0,0.11026]
[1731849783825,0.17048346,90706.0,90695.0,0.00355781]
[1731849784250,0.005,90706.0,90695.0,0.00355781]
[1731849784451,0.110249,90704.0,90695.0,0.00355781]
[1731849784666,0.110249,90704.0,90694.0,0.110259]
[1731849784844,0.110249,90704.0,90696.0,0.00355949]
[1731849785072,0.110247,90705.0,90696.0,0.00355949]
[1731849785274,0.110247,90705.0,90694.0,0.110259]
[1731849785275,0.11025,90703.0,90694.0,0.110259]
[1731849785479,0.110251,90702.0,90694.0,0.110259]
[1731849785603,0.005,90706.0,90697.0,0.00355613]
[1731849785808,0.005,90706.0,90689.0,0.16548346]
[1731849785809,0.110256,90698.0,90689.0,0.16548346]
[1731849786081,0.110254,90700.0,90691.0,0.110264]
[1731849786207,0.220496,90705.0,90689.0,0.16548346]
[1731849786413,0.220496,90705.0,90691.0,0.110264]
[1731849786613,0.110254,90700.0,90691.0,0.110264]
[1731849786839,0.110249,90704.0,90694.0,0.11026]
[1731849787058,0.005,90706.0,90692.0,0.00356453]
[1731849787258,0.005,90706.0,90695.0,0.00355629]
[1731849787467,0.220495,90705.0,90693.0,0.00356301]
[1731849787651,0.110252,90702.0,90696.0,0.00355797]
[1731849787888,0.110252,90702.0,90693.0,0.110262]
[1731849788086,0.220492,90706.0,90697.0,0.00354957]
[1731849788287,0.005,90711.0,90697.0,0.002]
[1731849788490,0.09448346,90711.0,90705.0,0.110246]
[1731849788900,0.1,90727.0,90706.0,0.00349746]
[1731849789101,0.16548346,90733.0,90701.0,0.002]
[1731849789102,0.00220564,90726.0,90707.0,0.002]
[1731849789335,0.110228,90721.0,90713.0,0.110237]
[1731849789550,0.110228,90721.0,90708.0,0.220487]
[1731849789551,0.16548346,90733.0,90708.0,0.22399789]
[1731849789751,0.110219,90729.0,90715.0,0.110235]
[1731849789957,0.16548346,90732.0,90712.0,0.220475]
[1731849790159,0.16548346,90732.0,90717.0,0.220465]
[1731849790347,0.110217,90730.0,90717.0,0.22266943]
[1731849790561,0.110217,90730.0,90722.0,0.110226]
[1731849791049,0.16548346,90732.0,90723.0,0.00347945]
[1731849791259,0.110221,90727.0,90723.0,0.00347945]
[1731849791409,0.22263764,90731.0,90719.0,0.110229]
[1731849791410,0.220432,90731.0,90719.0,0.110229]
[1731849791626,0.110223,90725.0,90724.0,0.00345394]
[1731849791875,0.00220564,90730.0,90724.0,0.00345394]
[1731849792064,0.110221,90727.0,90719.0,0.110229]
[1731849792261,0.110221,90727.0,90724.0,0.00344219]
[1731849792790,0.110221,90727.0,90712.0,0.220475]
[1731849792791,0.16548346,90738.0,90725.0,0.00344387]
[1731849792999,0.110214,90733.0,90725.0,0.11366587]
[1731849793225,0.110214,90733.0,90725.0,0.110222]
[1731849793422,0.110214,90733.0,90726.0,0.00345226]
[1731849794175,0.220422,90735.0,90726.0,0.00345226]
[1731849794428,0.110214,90733.0,90726.0,0.00345226]
[1731849794634,0.220419,90736.0,90725.0,0.110222]
[1731849794832,0.220419,90736.0,90719.0,0.22046]
[1731849794833,0.110212,90734.0,90727.0,0.00345058]
[1731849795034,0.110215,90732.0,90728.0,0.00345058]
[1731849795546,0.110215,90732.0,90729.0,0.00344554]
[1731849795765,0.110215,90732.0,90724.0,0.110223]
[1731849796183,0.023,90745.0,90721.0,0.16548346]
[1731849796392,0.16548346,90739.0,90725.0,0.00345226]
[1731849796593,0.00220564,90738.0,90721.0,0.16548346]
[1731849796809,0.00220564,90738.0,90726.0,0.00346233]
[1731849797028,0.220432,90731.0,90721.0,0.16548346]
[1731849797189,0.220424,90734.0,90721.0,0.27571046]
[1731849797407,0.110218,90729.0,90722.0,0.00345561]
[1731849798055,0.220426,90733.0,90722.0,0.00345561]
[1731849798056,0.330643,90732.0,90722.0,0.00345561]
[1731849798259,0.220426,90733.0,90722.0,0.00345561]
[1731849798260,0.16548346,90739.0,90722.0,0.00345561]
[1731849798491,0.110218,90729.0,90720.0,0.110228]
[1731849798681,0.110219,90728.0,90723.0,0.00345561]
[1731849798907,0.220431,90731.0,90723.0,0.00345561]
[1731849798908,0.110224,90725.0,90723.0,0.00345561]
[1731849799132,0.16548346,90739.0,90716.0,0.02858235]
[1731849799133,0.110219,90729.0,90716.0,0.02858235]
[1731849799335,0.00220564,90735.0,90724.0,0.00342135]
[1731849799536,0.00220564,90735.0,90717.0,0.10906255]
[1731849799537,0.110219,90729.0,90721.0,0.110227]
[1731849799756,0.220424,90734.0,90725.0,0.00343646]
[1731849799950,0.11021,90736.0,90722.0,0.002]
[1731849800176,0.220417,90737.0,90726.0,0.1136541]
[1731849800331,0.220417,90737.0,90724.0,0.351148]
[1731849800332,0.1,90748.0,90724.0,0.1307]
[1731849800533,0.00220564,90747.0,90729.0,0.110217]
[1731849800740,0.110207,90738.0,90729.0,0.110217]
[1731849800941,0.110207,90738.0,90730.0,0.1136642]
[1731849801144,0.00220564,90744.0,90730.0,0.1136642]
[1731849801145,0.220402,90744.0,90730.0,0.1136642]
[1731849801442,0.1,90748.0,90730.0,0.1136642]
[1731849801443,0.220422,90735.0,90730.0,0.0034482]
[1731849801643,0.1,90748.0,90730.0,0.0034482]
[1731849801644,0.110215,90731.0,90730.0,0.0034482]
[1731849801804,0.110215,90731.0,90721.0,0.16548346]
[1731849801805,0.110223,90725.0,90721.0,0.16548346]
[1731849802061,0.110226,90723.0,90722.0,0.00342471]
[1731849802282,0.110225,90723.0,90722.0,0.00342471]
[1731849802708,0.110231,90718.0,90717.0,0.02863528]
[1731849802913,0.220458,90721.0,90711.0,0.0017124]
[1731849803126,0.16548346,90735.0,90711.0,0.0017124]
[1731849803127,0.110238,90712.0,90711.0,0.0017124]
[1731849803555,0.220475,90714.0,90711.0,0.0017124]
[1731849803556,0.00220564,90713.0,90711.0,0.0017124]
[1731849803972,0.110238,90712.0,90711.0,0.0017124]
[1731849805210,0.16548346,90723.0,90711.0,0.0017124]
[1731849805211,0.24868346,90739.0,90711.0,0.11077495]
[1731849805422,0.24868346,90739.0,90713.0,0.220475]
[1731849805423,0.16548346,90729.0,90713.0,0.220475]
[1731849805630,0.16548346,90729.0,90723.0,0.110224]
[1731849806032,0.2212712,90738.0,90723.0,0.110224]
[1731849806033,0.220417,90737.0,90724.0,0.00321601]
[1731849806251,0.0008562,90738.0,90724.0,0.00321601]
[1731849806484,0.0008562,90738.0,90731.0,0.110215]
[1731849806699,0.0008562,90738.0,90734.0,0.110211]
[1731849806966,0.0008562,90738.0,90732.0,0.00320202]
[1731849807145,0.0008562,90738.0,90735.0,0.00319698]
[1731849807322,0.0008562,90738.0,90737.0,0.110208]
[1731849807885,0.0008562,90738.0,90737.0,0.11337442]
[1731849808448,0.0008562,90738.0,90737.0,0.22464084]
[1731849808650,0.0008562,90738.0,90737.0,0.22243697]
[1731849810960,0.0008562,90738.0,90737.0,0.22443697]
[1731849811202,0.0008562,90738.0,90737.0,0.22243697]
[1731849812136,0.0008562,90738.0,90737.0,0.25114069]
[1731849812335,0.0008562,90738.0,90737.0,0.25314069]
[1731849812463,0.0008562,90738.0,90737.0,0.25114069]
[1731849813510,0.0008562,90738.0,90737.0,0.25314069]
[1731849814222,0.0008562,90738.0,90737.0,0.25814069]
[1731849814440,0.0008562,90738.0,90737.0,0.25614069]
[1731849814653,0.0008562,90738.0,90737.0,0.33524069]
[1731849815004,0.0008562,90738.0,90737.0,0.44024069]
[1731849815175,0.16548346,90751.0,90750.0,0.110192]
[1731849815433,0.16548346,90751.0,90750.0,0.21925455]
[1731849815645,0.0008558,90759.0,90757.0,0.110183]
[1731849816079,0.0008558,90759.0,90756.0,0.110185]
[1731849816290,0.0008558,90759.0,90753.0,0.220378]
[1731849816291,0.0008558,90759.0,90758.0,0.00310176]
[1731849816509,0.0008558,90759.0,90758.0,0.110183]
[1731849816933,0.0008558,90759.0,90758.0,0.11328476]
[1731849818316,0.0008558,90759.0,90758.0,0.00310176]
[1731849818755,0.110176,90764.0,90758.0,0.00310176]
[1731849818978,0.220346,90766.0,90758.0,0.00310176]
[1731849819193,0.220344,90767.0,90752.0,0.27454601]
[1731849819415,0.0017134,90772.0,90752.0,0.27454601]
[1731849819416,0.110176,90764.0,90753.0,0.220378]
[1731849819642,0.220346,90766.0,90758.0,0.110182]
[1731849819643,0.110174,90766.0,90758.0,0.110182]
[1731849819868,0.110176,90764.0,90754.0,0.00310255]
[1731849820072,0.110177,90763.0,90759.0,0.00309751]
[1731849820279,0.220344,90767.0,90754.0,0.220374]
[1731849820488,0.220344,90767.0,90752.0,0.30276214]
[1731849820489,0.110174,90765.0,90760.0,0.00309081]
[1731849820663,0.440678,90769.0,90756.0,0.110184]
[1731849820923,0.440678,90769.0,90755.0,0.220372]
[1731849820924,0.00220564,90768.0,90755.0,0.0031059]
[1731849821142,0.16548346,90767.0,90752.0,0.02821613]
[1731849821358,0.16548346,90767.0,90708.0,0.24584634]
[1731849821359,0.100183,90758.0,90757.0,0.0031059]
[1731849821575,0.0017134,90772.0,90736.0,0.0499]
[1731849821576,0.00220564,90765.0,90739.0,0.10906255]
[1731849821781,0.0017134,90772.0,90739.0,0.10906255]
[1731849821782,0.110194,90749.0,90748.0,0.16548346]
[1731849822225,0.110206,90739.0,90738.0,0.16548346]
[1731849822650,0.220409,90740.0,90732.0,0.02857416]
[1731849823053,0.110208,90738.0,90730.0,0.110216]
[1731849823540,0.110208,90738.0,90728.0,0.222437]
[1731849823768,0.0824,90759.0,90729.0,0.11126666]
[1731849823972,0.16548346,90750.0,90735.0,0.002]
[1731849824180,0.16548346,90750.0,90737.0,0.110208]
[1731849824181,0.220388,90749.0,90737.0,0.110208]
[1731849824385,0.22039,90748.0,90739.0,0.110205]
[1731849824618,0.110196,90747.0,90740.0,0.110204]
[1731849825244,0.110197,90746.0,90740.0,0.110204]
[1731849826779,0.110197,90746.0,90739.0,0.110205]
[1731849826977,0.110197,90746.0,90738.0,0.02924818]
[1731849826978,0.110196,90748.0,90738.0,0.02924818]
[1731849827198,0.220366,90758.0,90738.0,0.02924818]
[1731849827199,0.110196,90747.0,90740.0,0.110204]
[1731849828872,0.31857827,90783.0,90737.0,0.02825415]
[1731849828873,0.110205,90740.0,90737.0,0.02825415]
[1731849829084,0.00220564,90759.0,90736.0,0.10906255]
[1731849829261,0.16548346,90751.0,90736.0,0.10906255]
[1731849829461,0.00220564,90757.0,90736.0,0.10825326]
[1731849829892,0.220363,90759.0,90737.0,0.168622]
[1731849830049,0.220368,90757.0,90737.0,0.168622]
[1731849830249,0.220401,90744.0,90737.0,0.168622]
[1731849830533,0.220392,90748.0,90737.0,0.168622]
[1731849830534,0.110207,90738.0,90737.0,0.168622]
[1731849830743,0.220404,90743.0,90737.0,0.168622]
[1731849830943,0.110205,90740.0,90737.0,0.00313854]
[1731849831455,0.220363,90759.0,90737.0,0.00313854]
[1731849831456,0.220383,90751.0,90737.0,0.00313854]
[1731849831594,0.110204,90741.0,90737.0,0.00313854]
[1731849831801,0.220401,90744.0,90737.0,0.00313854]
[1731849832008,0.22039,90748.0,90737.0,0.00313854]
[1731849832231,0.220388,90749.0,90737.0,0.00313854]
[1731849832438,0.16548346,90751.0,90739.0,0.110205]
[1731849832439,0.1102,90744.0,90739.0,0.110205]
[1731849832677,0.1102,90744.0,90737.0,0.00313854]
[1731849833030,0.1102,90744.0,90738.0,0.110207]
[1731849833231,0.1102,90744.0,90738.0,0.11332397]
[1731849833610,0.220395,90746.0,90738.0,0.11332397]
[1731849833788,0.110198,90745.0,90738.0,0.11332397]
[1731849833960,0.1102,90744.0,90738.0,0.11332397]
[1731849834784,0.110199,90745.0,90739.0,0.110205]
[1731849834999,0.110199,90745.0,90739.0,0.00311182]
[1731849835407,0.22039,90748.0,90739.0,0.00311182]
[1731849835602,0.16548346,90751.0,90736.0,0.24694271]
[1731849835603,0.110204,90741.0,90736.0,0.13673371]
[1731849835807,0.09827227,90776.0,90736.0,0.13673371]
[1731849835808,0.110199,90745.0,90740.0,0.00311674]
[1731849836009,0.110199,90745.0,90739.0,0.110205]
[1731849836191,0.110202,90742.0,90741.0,0.00311097]
[1731849836421,0.110202,90742.0,90722.0,0.220452]
[1731849836422,0.110203,90741.0,90720.0,0.002]
[1731849836627,0.220412,90739.0,90723.0,0.0486]
[1731849836840,0.11022,90727.0,90726.0,0.0031293]
[1731849837044,0.10944489,90727.0,90726.0,0.0031293]
[1731849837270,0.110221,90726.0,90725.0,0.10587572]
[1731849837702,0.11022,90728.0,90725.0,0.10587572]
[1731849837926,0.220441,90727.0,90715.0,0.076]
[1731849838152,0.110237,90713.0,90712.0,0.0017126]
[1731849838778,0.22046,90720.0,90707.0,0.02874134]
[1731849838779,0.22046,90720.0,90707.0,0.00403188]
[1731849838989,0.220435,90730.0,90705.0,0.076]
[1731849838990,0.110241,90711.0,90705.0,0.076]
[1731849839203,0.110242,90709.0,90705.0,0.076]
[1731849839623,0.16548346,90729.0,90705.0,0.076]
[1731849839854,0.11024,90711.0,90706.0,0.110245]
[1731849840087,0.110239,90712.0,90705.0,0.076]
[1731849840289,0.220456,90721.0,90708.0,0.002]
[1731849840543,0.16548346,90719.0,90716.0,0.110232]
[1731849840787,0.16548346,90729.0,90709.0,0.10906255]
[1731849841007,0.11022,90727.0,90705.0,0.076]
[1731849841231,0.110243,90708.0,90707.0,0.16548346]
[1731849841431,0.220474,90714.0,90707.0,0.16548346]
[1731849841640,0.220474,90714.0,90706.0,0.10906255]
[1731849841641,0.11024,90712.0,90706.0,0.10906255]
[1731849841859,0.220457,90721.0,90706.0,0.10906255]
[1731849842061,0.11024,90711.0,90706.0,0.21930755]
[1731849842286,0.110242,90710.0,90706.0,0.10906255]
[1731849842514,0.22048,90712.0,90706.0,0.10906255]
[1731849843004,0.110241,90710.0,90706.0,0.10906255]
[1731849843200,0.110245,90707.0,90706.0,0.10906255]
[1731849843403,0.22048,90712.0,90706.0,0.10906255]
[1731849843794,0.110242,90709.0,90706.0,0.10906255]
[1731849844376,0.16548346,90708.0,90696.0,0.076]
[1731849844607,0.110264,90692.0,90687.0,0.1211]
[1731849844847,0.17048346,90719.0,90687.0,0.0451]
[1731849844848,0.00220564,90693.0,90687.0,0.0451]
[1731849845009,0.023,90711.0,90686.0,0.001713]
[1731849845010,0.220533,90690.0,90686.0,0.001713]
[1731849845223,0.110269,90687.0,90686.0,0.001713]
[1731849848721,0.00220564,90688.0,90686.0,0.001713]
[1731849848951,0.110269,90687.0,90686.0,0.001713]
[1731849859386,0.21933155,90687.0,90686.0,0.001713]
[1731849859603,0.24953719,90687.0,90686.0,0.001713]
[1731849860238,0.27789173,90687.0,90686.0,0.001713]
[1731849861896,0.38289173,90687.0,90686.0,0.001713]
[1731849862104,0.38068609,90687.0,90686.0,0.001713]
[1731849862737,0.46268609,90687.0,90686.0,0.001713]
[1731849863170,0.46268609,90687.0,90675.0,0.0017132]
[1731849863171,0.110282,90676.0,90675.0,0.0017132]
[1731849863388,0.11248764,90676.0,90675.0,0.0017132]
[1731849863613,0.13426819,90676.0,90675.0,0.0017132]
[1731849863823,0.24455019,90676.0,90675.0,0.0017132]
[1731849869468,0.27311136,90676.0,90675.0,0.0017132]
[1731849870442,0.29552266,90676.0,90675.0,0.0017132]
[1731849870746,0.29331702,90676.0,90675.0,0.0017132]
[1731849870923,0.110282,90676.0,90675.0,0.0017132]
[1731849871148,0.11248764,90676.0,90675.0,0.0017132]
[1731849878625,0.00220564,90676.0,90675.0,0.0017132]
[1731849878844,0.110282,90676.0,90675.0,0.0017132]
[1731849879079,0.11248764,90676.0,90675.0,0.0017132]
[1731849879759,0.110282,90676.0,90675.0,0.0017132]
[1731849880448,0.110282,90676.0,90675.0,0.00508126]
[1731849880679,0.110282,90676.0,90675.0,0.0017132]
[1731849880973,0.110276,90682.0,90676.0,0.110282]
[1731849881228,0.110276,90682.0,90675.0,0.00508126]
[1731849881468,0.110276,90682.0,90677.0,0.110281]
[1731849881921,0.110276,90682.0,90678.0,0.0033731]
[1731849882398,0.00220564,90685.0,90675.0,0.1119962]
[1731849882626,0.110277,90680.0,90679.0,0.00337142]
[1731849882849,0.11248264,90680.0,90679.0,0.00337142]
[1731849883067,0.11248264,90680.0,90675.0,0.0017132]
[1731849883068,0.110282,90676.0,90675.0,0.0017132]
[1731849883301,0.11248764,90676.0,90675.0,0.0017132]
[1731849886401,0.11420084,90676.0,90675.0,0.0017132]
[1731849886847,0.00391884,90676.0,90675.0,0.0017132]
[1731849887073,0.0017132,90676.0,90675.0,0.0017132]
[1731849887549,0.0017132,90676.0,90675.0,0.27864587]
[1731849887781,0.0017132,90676.0,90675.0,0.2459962]
[1731849888013,0.0017132,90676.0,90675.0,0.24934208]
[1731849889391,0.0017132,90676.0,90675.0,0.35840463]
[1731849890967,0.0017132,90676.0,90675.0,0.35640463]
[1731849891454,0.0017132,90676.0,90675.0,0.35840463]
[1731849891902,0.0017132,90676.0,90675.0,0.35640463]
[1731849892646,0.0017132,90676.0,90675.0,0.13705908]
[1731849893115,0.1119952,90676.0,90675.0,0.05375908]
[1731849893349,0.1119952,90676.0,90675.0,0.00505908]
[1731849893574,0.220543,90686.0,90675.0,0.00505908]
[1731849893877,0.111983,90687.0,90675.0,0.0017132]
[1731849894086,0.001713,90687.0,90676.0,0.220565]
[1731849894305,0.330811,90686.0,90678.0,0.110279]
[1731849894528,0.001713,90687.0,90675.0,0.0017132]
[1731849894529,0.001713,90687.0,90677.0,0.00331132]
[1731849894757,0.001713,90687.0,90685.0,0.11027]
[1731849894986,0.001713,90687.0,90681.0,0.330829]
[1731849895246,0.001713,90687.0,90686.0,0.11356704]
[1731849895452,0.110275,90682.0,90681.0,0.0463]
[1731849895656,0.001713,90687.0,90675.0,0.0017132]
[1731849895882,0.110277,90681.0,90675.0,0.0017132]
[1731849896078,0.001713,90687.0,90675.0,0.0017132]
[1731849896216,0.110277,90681.0,90675.0,0.1119962]
[1731849896635,0.110274,90683.0,90676.0,0.110282]
[1731849896881,0.220543,90685.0,90675.0,0.0017132]
[1731849897228,0.220543,90685.0,90675.0,0.2222802]
[1731849897429,0.220546,90684.0,90675.0,0.0017132]
[1731849897877,0.220546,90684.0,90676.0,0.110282]
[1731849898085,0.110277,90681.0,90675.0,0.0017132]
[1731849898236,0.110278,90680.0,90675.0,0.0017132]
[1731849898436,0.110278,90680.0,90675.0,0.1119962]
[1731849898639,0.11028,90678.0,90675.0,0.0017132]
[1731849898842,0.220555,90681.0,90675.0,0.0017132]
[1731849899051,0.110277,90680.0,90675.0,0.0017132]
[1731849899248,0.110282,90676.0,90675.0,0.0017132]
[1731849901375,0.110282,90676.0,90675.0,0.00501024]
[1731849901577,0.110282,90676.0,90675.0,0.0017132]
[1731849901800,0.001713,90687.0,90675.0,0.0017132]